[Event "FIDE Women World Blitz 2021"]
[Site "Warsaw"]
[Date "2021.12.29"]
[Round "9.4"]
[White "Jarocka, Liwia"]
[Black "Kazarian, Anna-Maja"]
[Result "1-0"]
[ECO "C06"]
[WhiteElo "1851"]
[BlackElo "2138"]
[Annotator "NA"]
[PlyCount "163"]
[EventDate "2021.12.29"]
[EventType "swiss"]
[EventCountry "POL"]
[Tiebreak "Cut1 Buchholz"]
[SourceTitle "playchess.com"]
[Source "ChessBase"]
[SourceQuality "1"]
[TimeControl "180+2"]

1. e4 {[%emt 0:00:01]} e6 {[%emt 0:00:00]} 2. d4 {[%emt 0:00:00]} d5 {[%emt 0:
00:01]} 3. Nd2 {[%emt 0:00:01]} Nf6 {[%emt 0:00:02]} 4. e5 {[%emt 0:00:01]}
Nfd7 {[%emt 0:00:00]} 5. Bd3 {[%emt 0:00:01]} c5 {[%emt 0:00:03]} 6. c3 {
[%emt 0:00:01]} Nc6 {[%emt 0:00:01]} 7. Ne2 {[%emt 0:00:00]} cxd4 {[%emt 0:00:
00]} 8. cxd4 {[%emt 0:00:01]} f6 {[%emt 0:00:01]} 9. exf6 {[%emt 0:00:01]} Qxf6
{[%emt 0:00:01]} 10. Nf3 {[%emt 0:00:02]} h6 {[%emt 0:00:01]} 11. O-O {[%emt 0:
00:01]} Bd6 {[%emt 0:00:01]} 12. Be3 {[%emt 0:00:12]} O-O {[%emt 0:00:02]} 13.
Rc1 {[%emt 0:00:02]} Rd8 {[%emt 0:00:06]} 14. Bb1 {[%emt 0:00:02]} Nf8 {
[%emt 0:00:01]} 15. Ng3 {[%emt 0:00:04]} Bd7 {[%emt 0:00:05]} 16. a3 {[%emt 0:
00:01]} Be8 {[%emt 0:00:02]} 17. b4 {[%emt 0:00:04]} a6 {[%emt 0:00:01]} 18.
Re1 {[%emt 0:00:08]} g5 {[%emt 0:00:23]} 19. h3 {[%emt 0:00:20]} Bg6 {[%emt 0:
00:27]} 20. Qd2 {[%emt 0:00:01]} Rac8 {[%emt 0:00:34]} 21. Nxg5 {[%emt 0:00:14]
} Bxg3 {[%emt 0:00:17]} 22. fxg3 {[%emt 0:00:14]} hxg5 {[%emt 0:00:01]} 23.
Rxc6 {[%emt 0:00:30]} bxc6 {[%emt 0:00:19]} 24. Bxg5 {[%emt 0:00:01]} Qg7 {
[%emt 0:00:06]} 25. Bxd8 {[%emt 0:00:09]} Rxd8 {[%emt 0:00:05]} 26. Bxg6 {
[%emt 0:00:03]} Qxg6 {[%emt 0:00:09]} 27. g4 {[%emt 0:00:01]} Nh7 {[%emt 0:00:
14]} 28. Re5 {[%emt 0:00:10]} Rf8 {[%emt 0:00:11]} 29. Qe3 {[%emt 0:00:05]} Kf7
{[%emt 0:00:16]} 30. Qc3 {[%emt 0:00:16]} Ng5 {[%emt 0:00:18]} 31. Qxc6 {
[%emt 0:00:02]} Kg8 {[%emt 0:00:08]} 32. h4 {[%emt 0:00:04]} Ne4 {[%emt 0:00:
06]} 33. Qxe6+ {[%emt 0:00:05]} Qxe6 {[%emt 0:00:01]} 34. Rxe6 {[%emt 0:00:01]}
Rf4 {[%emt 0:00:02]} 35. Rxa6 {[%emt 0:00:08]} Rxg4 {[%emt 0:00:01]} 36. b5 {
[%emt 0:00:09]} Rxh4 {[%emt 0:00:03]} 37. b6 {[%emt 0:00:02]} Nd6 {[%emt 0:00:
01]} 38. Ra5 {[%emt 0:00:08]} Rxd4 {[%emt 0:00:01]} 39. Rc5 {[%emt 0:00:06]}
Rd1+ {[%emt 0:00:02]} 40. Kh2 {[%emt 0:00:01]} d4 {[%emt 0:00:02]} 41. Rc6 {
[%emt 0:00:01]} Nb7 {[%emt 0:00:04]} 42. Rc7 {[%emt 0:00:01]} Na5 {[%emt 0:00:
02]} 43. b7 {[%emt 0:00:16]} Nxb7 {[%emt 0:00:00]} 44. Rxb7 {[%emt 0:00:00]}
Rd3 {[%emt 0:00:04]} 45. Rd7 {[%emt 0:00:04]} Rxa3 {[%emt 0:00:01]} 46. Rxd4 {
[%emt 0:00:00]} Kg7 {[%emt 0:00:01]} 47. Rd6 {[%emt 0:00:03]} Rb3 {[%emt 0:00:
01]} 48. g3 {[%emt 0:00:02]} Rc3 {[%emt 0:00:04]} 49. Kh3 {[%emt 0:00:01]} Rb3
{[%emt 0:00:01]} 50. Kh4 {[%emt 0:00:01]} Ra3 {[%emt 0:00:01]} 51. g4 {[%emt 0:
00:01]} Ra1 {[%emt 0:00:00]} 52. Kh5 {[%emt 0:00:04]} Ra2 {[%emt 0:00:06]} 53.
Rd7+ {[%emt 0:00:03]} Kf6 {[%emt 0:00:02]} 54. g5+ {[%emt 0:00:02]} Ke6 {
[%emt 0:00:01]} 55. Rd1 {[%emt 0:00:04]} Kf7 {[%emt 0:00:01]} 56. Rd7+ {
[%emt 0:00:05]} Ke6 {[%emt 0:00:01]} 57. Rb7 {[%emt 0:00:02]} Kf5 {[%emt 0:00:
02]} 58. Rb5+ {[%emt 0:00:02]} Ke6 {[%emt 0:00:01]} 59. Kg6 {[%emt 0:00:01]}
Ra7 {[%emt 0:00:04]} 60. Rb6+ {[%emt 0:00:02]} Ke5 {[%emt 0:00:01]} 61. Kh6 {
[%emt 0:00:03]} Kf5 {[%emt 0:00:07]} 62. g6 {[%emt 0:00:04]} Ra2 {[%emt 0:00:
01]} 63. Rb5+ {[%emt 0:00:10]} Kf6 {[%emt 0:00:01]} 64. Rb6+ {[%emt 0:00:01]}
Kf5 {[%emt 0:00:00]} 65. Kh7 {[%emt 0:00:05]} Rh2+ {[%emt 0:00:04]} 66. Kg7 {
[%emt 0:00:01]} Rg2 {[%emt 0:00:01]} 67. Rb5+ {[%emt 0:00:02]} Ke6 {[%emt 0:00:
01]} 68. Kh7 {[%emt 0:00:02]} Kf6 {[%emt 0:00:01]} 69. Rb6+ {[%emt 0:00:02]}
Ke7 {[%emt 0:00:02]} 70. g7 {[%emt 0:00:02]} Rh2+ {[%emt 0:00:02]} 71. Kg8 {
[%emt 0:00:01]} Rh1 {[%emt 0:00:03]} 72. Rb4 {[%emt 0:00:02]} Ra1 {[%emt 0:00:
03]} 73. Rf4 {[%emt 0:00:05]} Rh1 {[%emt 0:00:03]} 74. Rf3 {[%emt 0:00:05]} Rh2
{[%emt 0:00:03]} 75. Re3+ {[%emt 0:00:02]} Kd7 {[%emt 0:00:00]} 76. Re4 {
[%emt 0:00:03]} Kd6 {[%emt 0:00:03]} 77. Kf7 {[%emt 0:00:03]} Rf2+ {[%emt 0:00:
01]} 78. Kg6 {[%emt 0:00:02]} Rg2+ {[%emt 0:00:01]} 79. Kf6 {[%emt 0:00:01]}
Kd5 {[%emt 0:00:02]} 80. Re5+ {[%emt 0:00:02]} Kd6 {[%emt 0:00:01]} 81. Rg5 {
[%emt 0:00:02]} Rf2+ {[%emt 0:00:01]} 82. Kg6 {[%emt 0:00:02]} 1-0

[Event "FIDE Women World Blitz 2021"]
[Site "Warsaw"]
[Date "2021.12.29"]
[Round "9.5"]
[White "Abdumalik, Zhansaya"]
[Black "Socko, Monika"]
[Result "1-0"]
[ECO "C11"]
[WhiteElo "2507"]
[BlackElo "2393"]
[Annotator "ChessBase"]
[PlyCount "93"]
[EventDate "2021.12.29"]
[EventType "swiss"]
[EventCountry "POL"]
[Tiebreak "Cut1 Buchholz"]
[SourceTitle "playchess.com"]
[Source "ChessBase"]
[SourceQuality "1"]
[TimeControl "180+2"]

1. e4 {[%emt 0:00:02]} e6 {[%emt 0:00:01]} 2. d4 {[%emt 0:00:01]} d5 {[%emt 0:
00:01]} 3. Nc3 {[%emt 0:00:01]} Nf6 {[%emt 0:00:01]} 4. e5 {[%emt 0:00:01]}
Nfd7 {[%emt 0:00:01]} 5. f4 {[%emt 0:00:01]} c5 {[%emt 0:00:02]} 6. Nf3 {
[%emt 0:00:01]} a6 {[%emt 0:00:01]} 7. Be3 {[%emt 0:00:03]} Qb6 {[%emt 0:00:01]
} 8. Na4 {[%emt 0:00:35]} Qa5+ {[%emt 0:00:02]} 9. c3 {[%emt 0:00:01]} cxd4 {
[%emt 0:00:01]} 10. b4 {[%emt 0:00:02]} Qc7 {[%emt 0:00:02]} 11. Bxd4 {[%emt 0:
00:04]} b5 {[%emt 0:00:03]} 12. Nb2 {[%emt 0:00:04]} Nc6 {[%emt 0:00:01]} 13.
Be3 {[%emt 0:00:10]} a5 {[%emt 0:00:20]} 14. a3 {[%emt 0:00:18]} Ba6 {[%emt 0:
00:36]} 15. Be2 {[%emt 0:00:03]} Be7 {[%emt 0:00:01]} 16. O-O {[%emt 0:00:04]}
O-O {[%emt 0:00:03]} 17. Nd4 {[%emt 0:00:06]} Nxd4 {[%emt 0:00:09]} 18. Bxd4 {
[%emt 0:00:02]} g6 {[%emt 0:00:25]} 19. Nd3 {[%emt 0:00:07]} Nb6 {[%emt 0:00:
06]} 20. Nc5 {[%emt 0:00:12]} Nc4 {[%emt 0:00:03]} 21. Qd3 {[%emt 0:00:21]} Bc8
{[%emt 0:00:05]} 22. Qh3 {[%emt 0:00:10]} Bd7 {[%emt 0:00:09]} 23. Qh6 {
[%emt 0:00:10]} Rfc8 {[%emt 0:00:13]} 24. Rf3 {[%emt 0:00:07]} Bf8 {[%emt 0:00:
01]} 25. Qh4 {[%emt 0:00:02]} axb4 {[%emt 0:00:25]} 26. cxb4 {[%emt 0:00:04]}
Be8 {[%emt 0:00:01]} 27. Rh3 {[%emt 0:00:05]} h6 {[%emt 0:00:01]} 28. Qg4 {
[%emt 0:00:10]} Bg7 {[%emt 0:00:18]} 29. Rc3 {[%emt 0:00:16]} Qe7 {[%emt 0:00:
00]} 30. h4 {[%emt 0:00:01]} Rc7 {[%emt 0:00:08]} 31. Qh3 {[%emt 0:00:08]} Rca7
{[%emt 0:00:04]} 32. h5 {[%emt 0:00:07]} g5 {[%emt 0:00:02]} 33. Nd3 {[%emt 0:
00:19]} Rxa3 {[%emt 0:00:12]} 34. Rcxa3 {[%emt 0:00:01]} Rxa3 {[%emt 0:00:01]}
35. Rxa3 {[%emt 0:00:01]} Nxa3 {[%emt 0:00:01]} 36. Bc5 {[%emt 0:00:01]} Qd8 {
[%emt 0:00:02]} 37. f5 {[%emt 0:00:01]} Bd7 {[%emt 0:00:06]} 38. f6 {[%emt 0:
00:02]} Bf8 {[%emt 0:00:01]} 39. Nf2 {[%emt 0:00:04]} Nc4 {[%emt 0:00:03]} 40.
Ng4 {[%emt 0:00:02]} d4 {[%emt 0:00:04]} 41. Bd3 {[%emt 0:00:04]} Bc6 {[%emt 0:
00:03]} 42. Qg3 {[%emt 0:00:03]} Nb2 {[%emt 0:00:05]} 43. Bxf8 {[%emt 0:00:03]}
Qxf8 {[%emt 0:00:00]} 44. Bb1 {[%emt 0:00:01]} Nc4 {[%emt 0:00:05]} 45. Qd3 {
[%emt 0:00:01]} Be4 {[%emt 0:00:15]} 46. Qxe4 {[%emt 0:00:01]} d3 {[%emt 0:00:
00]} 47. Qxd3 {[%emt 0:00:03]} 1-0

[Event "FIDE Women World Blitz 2021"]
[Site "Warsaw"]
[Date "2021.12.29"]
[Round "9.5"]
[White "Nurgali, Nazerke"]
[Black "Kucharska, Honorata"]
[Result "0-1"]
[ECO "D55"]
[WhiteElo "2267"]
[BlackElo "2168"]
[Annotator "NA"]
[PlyCount "72"]
[EventDate "2021.12.29"]
[EventType "swiss"]
[EventCountry "POL"]
[Tiebreak "Cut1 Buchholz"]
[SourceTitle "playchess.com"]
[Source "ChessBase"]
[SourceQuality "1"]
[TimeControl "180+2"]

1. d4 {[%emt 0:00:01]} d5 {[%emt 0:00:01]} 2. Nf3 {[%emt 0:00:01]} Nf6 {
[%emt 0:00:01]} 3. c4 {[%emt 0:00:01]} e6 {[%emt 0:00:01]} 4. Nc3 {[%emt 0:00:
01]} Be7 {[%emt 0:00:04]} 5. Bg5 {[%emt 0:00:02]} O-O {[%emt 0:00:01]} 6. e3 {
[%emt 0:00:01]} Nbd7 {[%emt 0:00:03]} 7. Bd3 {[%emt 0:00:02]} b6 {[%emt 0:00:
03]} 8. O-O {[%emt 0:00:03]} Bb7 {[%emt 0:00:01]} 9. Rc1 {[%emt 0:00:01]} c5 {
[%emt 0:00:01]} 10. cxd5 {[%emt 0:00:04]} exd5 {[%emt 0:00:02]} 11. Bf5 {
[%emt 0:00:04]} c4 {[%emt 0:00:16]} 12. a4 {[%emt 0:00:03]} h6 {[%emt 0:00:11]}
13. Bh4 {[%emt 0:00:05]} Ne8 {[%emt 0:00:17]} 14. Bg3 {[%emt 0:00:04]} Bd6 {
[%emt 0:00:02]} 15. Ne5 {[%emt 0:00:08]} Nxe5 {[%emt 0:00:19]} 16. dxe5 {
[%emt 0:00:01]} Bb4 {[%emt 0:00:09]} 17. Ne2 {[%emt 0:00:15]} g6 {[%emt 0:00:
34]} 18. Bh3 {[%emt 0:00:05]} Ng7 {[%emt 0:00:06]} 19. Nd4 {[%emt 0:00:02]} Re8
{[%emt 0:00:05]} 20. f4 {[%emt 0:00:15]} Bc5 {[%emt 0:00:08]} 21. f5 {[%emt 0:
00:09]} Bxd4 {[%emt 0:00:10]} 22. Qxd4 {[%emt 0:00:03]} gxf5 {[%emt 0:00:04]}
23. Bxf5 {[%emt 0:00:03]} Qg5 {[%emt 0:00:06]} 24. Bd7 {[%emt 0:00:07]} Ne6 {
[%emt 0:00:21]} 25. Bxe6 {[%emt 0:00:17]} Rxe6 {[%emt 0:00:03]} 26. Rf4 {
[%emt 0:00:22]} Rg6 {[%emt 0:00:02]} 27. Rcf1 {[%emt 0:00:10]} Rf8 {[%emt 0:00:
10]} 28. e6 {[%emt 0:00:04]} f5 {[%emt 0:00:14]} 29. Qe5 {[%emt 0:00:15]} Qe7 {
[%emt 0:00:14]} 30. Rxf5 {[%emt 0:00:06]} Rxf5 {[%emt 0:00:01]} 31. Qxf5 {
[%emt 0:00:07]} Rxe6 {[%emt 0:00:02]} 32. Bf4 {[%emt 0:00:24]} Qf6 {[%emt 0:00:
05]} 33. Qg4+ {[%emt 0:00:04]} Qg6 {[%emt 0:00:01]} 34. Qh3 {[%emt 0:00:03]}
Kh7 {[%emt 0:00:01]} 35. Qh4 {[%emt 0:00:10]} d4 {[%emt 0:00:01]} 36. Qd8 {
[%emt 0:00:04]} Qxg2# {[%emt 0:00:02]} 0-1

[Event "FIDE Women World Blitz 2021"]
[Site "Warsaw"]
[Date "2021.12.29"]
[Round "9.6"]
[White "Stefanova, Antoaneta"]
[Black "Bivol, Alina"]
[Result "1-0"]
[ECO "A05"]
[WhiteElo "2475"]
[BlackElo "2377"]
[Annotator "ChessBase"]
[PlyCount "77"]
[EventDate "2021.12.29"]
[EventType "swiss"]
[EventCountry "POL"]
[Tiebreak "Cut1 Buchholz"]
[SourceTitle "playchess.com"]
[Source "ChessBase"]
[SourceQuality "1"]
[TimeControl "180+2"]

1. Nf3 {[%emt 0:00:01]} Nf6 {[%emt 0:00:03]} 2. g3 {[%emt 0:00:00]} b6 {
[%emt 0:00:01]} 3. Bg2 {[%emt 0:00:02]} Bb7 {[%emt 0:00:00]} 4. O-O {[%emt 0:
00:01]} g6 {[%emt 0:00:01]} 5. d3 {[%emt 0:00:04]} Bg7 {[%emt 0:00:02]} 6. e4 {
[%emt 0:00:00]} d6 {[%emt 0:00:08]} 7. h3 {[%emt 0:00:12]} O-O {[%emt 0:00:05]}
8. Nbd2 {[%emt 0:00:03]} Nbd7 {[%emt 0:00:11]} 9. Qe2 {[%emt 0:00:03]} c5 {
[%emt 0:00:02]} 10. c3 {[%emt 0:00:03]} Qc7 {[%emt 0:00:06]} 11. a4 {[%emt 0:
00:11]} a6 {[%emt 0:00:06]} 12. Nh4 {[%emt 0:00:07]} e5 {[%emt 0:00:15]} 13. f4
{[%emt 0:00:04]} exf4 {[%emt 0:00:01]} 14. gxf4 {[%emt 0:00:01]} b5 {[%emt 0:
00:08]} 15. Qf2 {[%emt 0:00:04]} Rfe8 {[%emt 0:00:05]} 16. Re1 {[%emt 0:00:11]}
Nh5 {[%emt 0:00:14]} 17. Nf1 {[%emt 0:00:25]} b4 {[%emt 0:00:47]} 18. Bd2 {
[%emt 0:00:05]} bxc3 {[%emt 0:00:04]} 19. Bxc3 {[%emt 0:00:07]} d5 {[%emt 0:00:
13]} 20. Bxg7 {[%emt 0:00:06]} Nxg7 {[%emt 0:00:06]} 21. e5 {[%emt 0:00:11]} d4
{[%emt 0:00:02]} 22. Ng3 {[%emt 0:00:06]} Bxg2 {[%emt 0:00:03]} 23. Qxg2 {
[%emt 0:00:03]} Rab8 {[%emt 0:00:01]} 24. Ne4 {[%emt 0:00:03]} Re6 {[%emt 0:00:
20]} 25. Re2 {[%emt 0:00:05]} Kh8 {[%emt 0:00:13]} 26. Rc1 {[%emt 0:00:04]} Qa5
{[%emt 0:00:02]} 27. Rc4 {[%emt 0:00:25]} Rb3 {[%emt 0:00:02]} 28. Ng5 {
[%emt 0:00:07]} Re7 {[%emt 0:00:05]} 29. Qd5 {[%emt 0:00:05]} Ne6 {[%emt 0:00:
05]} 30. Nxf7+ {[%emt 0:00:07]} Kg7 {[%emt 0:00:06]} 31. f5 {[%emt 0:00:08]}
gxf5 {[%emt 0:00:14]} 32. Nxf5+ {[%emt 0:00:02]} Kxf7 {[%emt 0:00:01]} 33. Nxe7
{[%emt 0:00:01]} Kxe7 {[%emt 0:00:03]} 34. Qd6+ {[%emt 0:00:01]} Kd8 {[%emt 0:
00:02]} 35. Qxe6 {[%emt 0:00:03]} Rxd3 {[%emt 0:00:01]} 36. Qg8+ {[%emt 0:00:
15]} Kc7 {[%emt 0:00:01]} 37. e6 {[%emt 0:00:00]} Ne5 {[%emt 0:00:06]} 38. Qg7+
{[%emt 0:00:06]} Kc6 {[%emt 0:00:03]} 39. Qxe5 {[%emt 0:00:04]} 1-0

[Event "FIDE Women World Blitz 2021"]
[Site "Warsaw"]
[Date "2021.12.29"]
[Round "9.6"]
[White "Dylag, Emilia"]
[Black "Movsesian, Julia"]
[Result "1-0"]
[ECO "D36"]
[WhiteElo "1863"]
[BlackElo "2322"]
[Annotator "NA"]
[PlyCount "57"]
[EventDate "2021.12.29"]
[EventType "swiss"]
[EventCountry "POL"]
[Tiebreak "Cut1 Buchholz"]
[SourceTitle "playchess.com"]
[Source "ChessBase"]
[SourceQuality "1"]
[TimeControl "180+2"]

1. d4 {[%emt 0:00:01]} Nf6 {[%emt 0:00:01]} 2. c4 {[%emt 0:00:01]} e6 {[%emt 0:
00:00]} 3. Nc3 {[%emt 0:00:02]} d5 {[%emt 0:00:01]} 4. cxd5 {[%emt 0:00:03]}
exd5 {[%emt 0:00:00]} 5. Bg5 {[%emt 0:00:01]} Be7 {[%emt 0:00:01]} 6. e3 {
[%emt 0:00:02]} c6 {[%emt 0:00:01]} 7. Bd3 {[%emt 0:00:01]} Nbd7 {[%emt 0:00:
07]} 8. Qc2 {[%emt 0:00:04]} h6 {[%emt 0:00:01]} 9. Bh4 {[%emt 0:00:01]} Nh5 {
[%emt 0:00:00]} 10. Bxe7 {[%emt 0:00:02]} Qxe7 {[%emt 0:00:01]} 11. Nge2 {
[%emt 0:00:04]} Nf8 {[%emt 0:00:11]} 12. O-O-O {[%emt 0:00:08]} Be6 {[%emt 0:
00:01]} 13. Kb1 {[%emt 0:00:02]} O-O-O {[%emt 0:00:02]} 14. Rc1 {[%emt 0:00:02]
} Kb8 {[%emt 0:00:01]} 15. Na4 {[%emt 0:00:08]} Nd7 {[%emt 0:00:06]} 16. Qb3 {
[%emt 0:00:19]} Ka8 {[%emt 0:00:12]} 17. Rc2 {[%emt 0:00:19]} Qd6 {[%emt 0:00:
01]} 18. h3 {[%emt 0:00:08]} Rhe8 {[%emt 0:00:03]} 19. Rhc1 {[%emt 0:00:03]} f5
{[%emt 0:00:13]} 20. Nc5 {[%emt 0:00:19]} Nxc5 {[%emt 0:00:04]} 21. dxc5 {
[%emt 0:00:09]} Qd7 {[%emt 0:00:23]} 22. Nd4 {[%emt 0:00:02]} Rf8 {[%emt 0:00:
01]} 23. Qa4 {[%emt 0:00:14]} f4 {[%emt 0:00:52]} 24. Rc3 {[%emt 0:00:01]} Rf7
{[%emt 0:01:03]} 25. Ra3 {[%emt 0:00:02]} a6 {[%emt 0:00:01]} 26. Bxa6 {
[%emt 0:00:12]} Kb8 {[%emt 0:00:01]} 27. Rb3 {[%emt 0:00:04]} Bf5+ {[%emt 0:00:
06]} 28. Ka1 {[%emt 0:00:04]} Rc8 {[%emt 0:00:08]} 29. Rxb7+ {[%emt 0:00:09]}
1-0

[Event "FIDE Women World Blitz 2021"]
[Site "Warsaw"]
[Date "2021.12.29"]
[Round "9.7"]
[White "Gunina, Valentina"]
[Black "Majdan, Joanna"]
[Result "1-0"]
[ECO "A70"]
[WhiteElo "2480"]
[BlackElo "2325"]
[Annotator "ChessBase"]
[PlyCount "61"]
[EventDate "2021.12.29"]
[EventType "swiss"]
[EventCountry "POL"]
[Tiebreak "Cut1 Buchholz"]
[SourceTitle "playchess.com"]
[Source "ChessBase"]
[SourceQuality "1"]
[TimeControl "180+2"]

1. d4 {[%emt 0:00:02]} c5 {[%emt 0:00:00]} 2. d5 {[%emt 0:00:02]} e6 {[%emt 0:
00:01]} 3. c4 {[%emt 0:00:02]} exd5 {[%emt 0:00:02]} 4. cxd5 {[%emt 0:00:02]}
d6 {[%emt 0:00:01]} 5. Nf3 {[%emt 0:00:06]} Nf6 {[%emt 0:00:04]} 6. Nc3 {
[%emt 0:00:01]} a6 {[%emt 0:00:01]} 7. a4 {[%emt 0:00:01]} g6 {[%emt 0:00:02]}
8. e4 {[%emt 0:00:05]} Bg7 {[%emt 0:00:02]} 9. Bd3 {[%emt 0:00:01]} O-O {
[%emt 0:00:04]} 10. O-O {[%emt 0:00:04]} Re8 {[%emt 0:00:15]} 11. Re1 {[%emt 0:
00:02]} Nh5 {[%emt 0:00:04]} 12. Bg5 {[%emt 0:00:08]} Bf6 {[%emt 0:00:05]} 13.
Bxf6 {[%emt 0:00:02]} Qxf6 {[%emt 0:00:03]} 14. e5 {[%emt 0:00:04]} dxe5 {
[%emt 0:00:03]} 15. Ne4 {[%emt 0:00:02]} Qd8 {[%emt 0:00:24]} 16. Bc4 {[%emt 0:
00:15]} b6 {[%emt 0:00:15]} 17. d6 {[%emt 0:00:03]} Be6 {[%emt 0:00:29]} 18.
Bxe6 {[%emt 0:00:12]} Rxe6 {[%emt 0:00:01]} 19. Nfg5 {[%emt 0:00:02]} Re8 {
[%emt 0:00:10]} 20. Nxf7 {[%emt 0:00:04]} Kxf7 {[%emt 0:00:22]} 21. Qd5+ {
[%emt 0:00:01]} Kg7 {[%emt 0:00:08]} 22. Qxa8 {[%emt 0:00:02]} Nf6 {[%emt 0:00:
04]} 23. Nxf6 {[%emt 0:00:08]} Kxf6 {[%emt 0:00:03]} 24. Rad1 {[%emt 0:00:08]}
Qd7 {[%emt 0:00:01]} 25. Qd5 {[%emt 0:00:12]} Nc6 {[%emt 0:00:01]} 26. f4 {
[%emt 0:00:01]} Nd4 {[%emt 0:00:23]} 27. fxe5+ {[%emt 0:00:15]} Kg7 {[%emt 0:
00:01]} 28. Rxd4 {[%emt 0:00:06]} cxd4 {[%emt 0:00:01]} 29. e6 {[%emt 0:00:01]}
Qxa4 {[%emt 0:00:04]} 30. d7 {[%emt 0:00:02]} Qb4 {[%emt 0:00:11]} 31. Qe5+ {
[%emt 0:00:02]} 1-0

[Event "FIDE Women World Blitz 2021"]
[Site "Warsaw"]
[Date "2021.12.29"]
[Round "9.7"]
[White "Kolaric, Spela"]
[Black "Parol, Pola"]
[Result "0-1"]
[ECO "B22"]
[WhiteElo "2178"]
[BlackElo "1823"]
[Annotator "NA"]
[PlyCount "60"]
[EventDate "2021.12.29"]
[EventType "swiss"]
[EventCountry "POL"]
[Tiebreak "Cut1 Buchholz"]
[SourceTitle "playchess.com"]
[Source "ChessBase"]
[SourceQuality "1"]
[TimeControl "180+2"]

1. e4 {[%emt 0:00:01]} c5 {[%emt 0:00:00]} 2. c3 {[%emt 0:00:01]} d5 {[%emt 0:
00:01]} 3. exd5 {[%emt 0:00:01]} Qxd5 {[%emt 0:00:01]} 4. d4 {[%emt 0:00:01]}
Nc6 {[%emt 0:00:01]} 5. Nf3 {[%emt 0:00:05]} Bf5 {[%emt 0:00:03]} 6. Be3 {
[%emt 0:00:03]} Nf6 {[%emt 0:00:08]} 7. Na3 {[%emt 0:00:14]} e6 {[%emt 0:00:20]
} 8. dxc5 {[%emt 0:00:07]} Qxd1+ {[%emt 0:00:04]} 9. Rxd1 {[%emt 0:00:02]} Ng4
{[%emt 0:00:10]} 10. Nb5 {[%emt 0:00:19]} Rc8 {[%emt 0:01:03]} 11. b4 {[%emt 0:
00:01]} Nxe3 {[%emt 0:00:03]} 12. fxe3 {[%emt 0:00:01]} a5 {[%emt 0:00:05]} 13.
a3 {[%emt 0:00:05]} Be7 {[%emt 0:00:11]} 14. Nd6+ {[%emt 0:00:23]} Bxd6 {
[%emt 0:00:02]} 15. Rxd6 {[%emt 0:00:09]} axb4 {[%emt 0:00:02]} 16. axb4 {
[%emt 0:00:03]} Ke7 {[%emt 0:00:08]} 17. Bb5 {[%emt 0:00:17]} Rhd8 {[%emt 0:00:
06]} 18. Rxd8 {[%emt 0:00:04]} Rxd8 {[%emt 0:00:02]} 19. Ke2 {[%emt 0:00:06]}
Ra8 {[%emt 0:00:04]} 20. Rd1 {[%emt 0:00:08]} Ra3 {[%emt 0:00:06]} 21. Rc1 {
[%emt 0:00:26]} Ra2+ {[%emt 0:00:05]} 22. Kf1 {[%emt 0:00:05]} Be4 {[%emt 0:00:
11]} 23. Be2 {[%emt 0:00:05]} h6 {[%emt 0:00:06]} 24. Ke1 {[%emt 0:00:22]} g5 {
[%emt 0:00:03]} 25. g3 {[%emt 0:00:00]} Bxf3 {[%emt 0:00:09]} 26. Bxf3 {
[%emt 0:00:01]} Ne5 {[%emt 0:00:01]} 27. Be4 {[%emt 0:00:14]} f5 {[%emt 0:00:
03]} 28. Bb1 {[%emt 0:00:11]} Rxh2 {[%emt 0:00:02]} 29. b5 {[%emt 0:00:07]}
Nf3+ {[%emt 0:00:08]} 30. Kd1 {[%emt 0:00:02]} Rd2# {[%emt 0:00:02]} 0-1

[Event "FIDE Women World Blitz 2021"]
[Site "Warsaw"]
[Date "2021.12.29"]
[Round "9.8"]
[White "Zhukova, Natalia"]
[Black "Paehtz, Elisabeth"]
[Result "1/2-1/2"]
[ECO "E76"]
[WhiteElo "2331"]
[BlackElo "2485"]
[Annotator "ChessBase"]
[PlyCount "107"]
[EventDate "2021.12.29"]
[EventType "swiss"]
[EventCountry "POL"]
[Tiebreak "Cut1 Buchholz"]
[SourceTitle "playchess.com"]
[Source "ChessBase"]
[SourceQuality "1"]
[TimeControl "180+2"]

1. c4 {[%emt 0:00:01]} Nf6 {[%emt 0:00:01]} 2. Nc3 {[%emt 0:00:01]} g6 {
[%emt 0:00:02]} 3. e4 {[%emt 0:00:02]} d6 {[%emt 0:00:01]} 4. d4 {[%emt 0:00:
02]} Bg7 {[%emt 0:00:02]} 5. f4 {[%emt 0:00:08]} c5 {[%emt 0:00:06]} 6. d5 {
[%emt 0:00:01]} Bg4 {[%emt 0:00:07]} 7. Nf3 {[%emt 0:00:08]} O-O {[%emt 0:00:
05]} 8. Be2 {[%emt 0:00:01]} Na6 {[%emt 0:00:07]} 9. O-O {[%emt 0:00:03]} Nc7 {
[%emt 0:00:03]} 10. a4 {[%emt 0:00:04]} Nd7 {[%emt 0:00:06]} 11. Be3 {[%emt 0:
00:14]} Rb8 {[%emt 0:00:07]} 12. Qd2 {[%emt 0:00:05]} a6 {[%emt 0:00:05]} 13.
h3 {[%emt 0:00:07]} Bxf3 {[%emt 0:00:01]} 14. Rxf3 {[%emt 0:00:01]} b6 {
[%emt 0:00:28]} 15. Kh1 {[%emt 0:00:07]} Qc8 {[%emt 0:00:10]} 16. Rff1 {
[%emt 0:00:05]} Qb7 {[%emt 0:00:04]} 17. Ra3 {[%emt 0:00:16]} Rbd8 {[%emt 0:00:
06]} 18. Rb3 {[%emt 0:00:05]} Qc8 {[%emt 0:00:03]} 19. Bg4 {[%emt 0:00:16]} f5
{[%emt 0:00:05]} 20. exf5 {[%emt 0:00:07]} gxf5 {[%emt 0:00:01]} 21. Be2 {
[%emt 0:00:04]} Ne8 {[%emt 0:00:05]} 22. Bd3 {[%emt 0:00:03]} Bf6 {[%emt 0:00:
12]} 23. Bxf5 {[%emt 0:00:07]} Ng7 {[%emt 0:00:02]} 24. Bg4 {[%emt 0:00:05]}
Qc7 {[%emt 0:00:07]} 25. Ne4 {[%emt 0:00:02]} Kh8 {[%emt 0:00:02]} 26. Qc2 {
[%emt 0:00:09]} Bd4 {[%emt 0:00:11]} 27. Bxd4 {[%emt 0:00:18]} cxd4 {[%emt 0:
00:01]} 28. Bxd7 {[%emt 0:00:09]} Qxd7 {[%emt 0:00:02]} 29. Ng5 {[%emt 0:00:16]
} Qf5 {[%emt 0:00:48]} 30. Qd2 {[%emt 0:00:34]} h6 {[%emt 0:00:04]} 31. Ne6 {
[%emt 0:00:03]} Nxe6 {[%emt 0:00:04]} 32. dxe6 {[%emt 0:00:01]} Qc5 {[%emt 0:
00:09]} 33. f5 {[%emt 0:00:05]} Rf6 {[%emt 0:00:00]} 34. Rg3 {[%emt 0:00:06]}
Rg8 {[%emt 0:00:09]} 35. Rxg8+ {[%emt 0:00:04]} Kxg8 {[%emt 0:00:00]} 36. Qd3 {
[%emt 0:00:02]} Qe5 {[%emt 0:00:05]} 37. b3 {[%emt 0:00:02]} a5 {[%emt 0:00:01]
} 38. g4 {[%emt 0:00:04]} Kg7 {[%emt 0:00:02]} 39. Rd1 {[%emt 0:00:03]} Qf4 {
[%emt 0:00:06]} 40. Qxd4 {[%emt 0:00:02]} Qf3+ {[%emt 0:00:01]} 41. Kh2 {
[%emt 0:00:01]} Qe2+ {[%emt 0:00:01]} 42. Kg3 {[%emt 0:00:02]} Qc2 {[%emt 0:00:
03]} 43. Rd3 {[%emt 0:00:02]} Qe2 {[%emt 0:00:01]} 44. h4 {[%emt 0:00:02]} Qe1+
{[%emt 0:00:01]} 45. Kh3 {[%emt 0:00:04]} Qf1+ {[%emt 0:00:03]} 46. Kh2 {
[%emt 0:00:03]} Qe2+ {[%emt 0:00:02]} 47. Kg3 {[%emt 0:00:02]} Qe1+ {[%emt 0:
00:01]} 48. Kh3 {[%emt 0:00:02]} Qf1+ {[%emt 0:00:01]} 49. Kh2 {[%emt 0:00:02]}
Qe2+ {[%emt 0:00:01]} 50. Kg1 {[%emt 0:00:02]} Qe1+ {[%emt 0:00:01]} 51. Kg2 {
[%emt 0:00:01]} Qe2+ {[%emt 0:00:01]} 52. Kg3 {[%emt 0:00:01]} Qe1+ {[%emt 0:
03:05]} 53. Qf2 Qe5+ {[%emt 0:00:03]} 54. Kh3 {[%emt 0:00:01]} 1/2-1/2